bitfinex/quotes_SOLUSD_20250123
["timestamp","ask_amount","ask_price","bid_price","bid_amount"]
[1737648537031,0.03,252.43,252.36,23.776884]
[1737648537538,0.03,252.43,252.38,23.776884]
[1737648538046,0.03,252.43,252.38,335.776884]
[1737648538426,0.03,252.43,252.38,23.776884]
[1737648539632,0.03,252.43,252.37,6.1584]
[1737648540417,0.03,252.43,252.38,23.776884]
[1737648540751,0.03,252.43,252.29,1.0]
[1737648540924,0.03,252.43,252.28,1.0]
[1737648541120,0.03,252.43,252.36,20.0]
[1737648541343,0.03,252.43,252.37,23.776884]
[1737648541549,0.03,252.43,252.37,335.776884]
[1737648541924,0.03,252.43,252.37,23.776884]
[1737648542228,0.03,252.43,252.41,23.776884]
[1737648542436,0.03,252.43,252.42,20.0]
[1737648542957,0.03,252.43,252.42,50.111984]
[1737648545051,0.03,252.61,252.43,23.776884]
[1737648545941,0.03,252.61,252.47,23.776884]
[1737648546442,0.03,252.61,252.51,23.776884]
[1737648546649,0.03,252.61,252.42,8.8513]
[1737648546650,0.03,252.61,252.55,23.776884]
[1737648548527,0.03,252.61,252.6,312.0]
[1737648549748,0.03,252.61,252.42,7.8513]
[1737648550062,0.03,252.61,252.42,10.40005167]
[1737648550260,0.03,252.61,252.45,20.0]
[1737648550443,0.03,252.61,252.42,9.40005167]
[1737648550655,0.03,252.61,252.45,20.0]
[1737648550854,0.03,252.61,252.5,23.776884]
[1737648551036,0.03,252.61,252.45,23.776884]
[1737648551535,0.03,252.61,252.48,20.0]
[1737648551743,0.03,252.61,252.42,9.40005167]
[1737648551934,0.03,252.61,252.42,7.8513]
[1737648552135,0.03,252.61,252.47,23.776884]
[1737648552751,0.03,252.61,252.52,312.0]
[1737648553642,0.03,252.61,252.42,7.8513]
[1737648554032,0.03,252.61,252.45,20.0]
[1737648554257,31.81841395,252.61,252.42,6.3351]
[1737648554642,31.81841395,252.61,252.43,23.776884]
[1737648554853,0.03,252.61,252.47,23.776884]
[1737648555275,0.03,252.61,252.51,23.776884]
[1737648555768,0.03,252.61,252.55,23.776884]
[1737648555957,0.03,252.61,252.59,23.776884]
[1737648556731,0.03,252.61,252.6,312.0]
[1737648557037,70.55341517,252.65,252.63,20.0]
[1737648557247,0.55341517,252.65,252.64,23.776884]
[1737648557937,0.55341517,252.65,252.56,1.0]
[1737648557938,0.55341517,252.65,252.52,7.7591]
[1737648558346,0.55341517,252.65,252.52,6.1358]
[1737648558874,0.55341517,252.65,252.55,20.0]
[1737648559053,0.55341517,252.65,252.56,23.776884]
[1737648559476,0.55341517,252.65,252.55,20.0]
[1737648559669,0.55341517,252.65,252.44,6.4928]
[1737648560183,0.55341517,252.65,252.5,23.776884]
[1737648560340,32.34182912,252.65,252.49,312.0]
[1737648560545,0.55341517,252.65,252.5,23.776884]
[1737648561070,0.55341517,252.65,252.52,20.0]
[1737648561280,0.55341517,252.65,252.44,7.4928]
[1737648561449,0.55341517,252.65,252.47,20.0]
[1737648561640,0.55341517,252.65,252.49,1.0]
[1737648561840,0.55341517,252.65,252.53,20.0]
[1737648562378,0.55341517,252.65,252.58,23.776884]
[1737648562575,0.55341517,252.65,252.46,1.0]
[1737648562870,0.55341517,252.65,252.48,1.0]
[1737648563078,0.55341517,252.65,252.51,23.776884]
[1737648563249,0.55341517,252.65,252.59,23.776884]
[1737648563650,0.55341517,252.65,252.64,312.0]
[1737648563943,0.55341517,252.65,252.64,335.776884]
[1737648564149,0.55341517,252.65,252.64,312.0]
[1737648564874,0.55341517,252.65,252.45,1.0]
[1737648565476,0.55341517,252.65,252.51,20.0]
[1737648565779,0.55341517,252.65,252.47,20.0]
[1737648566080,0.55341517,252.65,252.52,20.0]
[1737648566381,0.55341517,252.65,252.56,20.0]
[1737648566762,0.55341517,252.65,252.46,23.776884]
[1737648567075,0.55341517,252.65,252.48,1.0]
[1737648567249,0.55341517,252.65,252.56,20.0]
[1737648567455,0.55341517,252.65,252.57,23.776884]
[1737648567878,0.55341517,252.65,252.57,312.0]
[1737648568082,0.55341517,252.65,252.48,23.776884]
[1737648568263,0.55341517,252.65,252.52,23.776884]
[1737648568780,0.55341517,252.65,252.48,2.0]
[1737648568781,0.58341517,252.65,252.48,1.0]
[1737648569172,0.58341517,252.65,252.52,43.776884]
[1737648569359,0.58341517,252.65,252.52,20.0]
[1737648569556,0.58341517,252.65,252.45,23.776884]
[1737648569895,0.58341517,252.65,252.44,8.10368883]
[1737648570069,31.78841395,252.62,252.39,2.6373]
[1737648570251,0.58341517,252.65,252.57,20.0]
[1737648570574,1.6196,252.78,252.65,20.0]
[1737648570775,1.6196,252.78,252.66,23.776884]
[1737648570954,1.6196,252.78,252.71,23.776884]
[1737648571693,6.3154,252.84,252.73,20.0]
[1737648571850,6.3154,252.84,252.64,1.58005911]
[1737648572050,6.3154,252.84,252.64,1.0]
[1737648572271,1.5314,252.87,252.72,20.0]
[1737648572472,1.5314,252.87,252.77,23.776884]
[1737648572883,6.3154,252.92,252.77,23.776884]
[1737648573183,25.83474017,252.92,252.77,23.776884]
[1737648573773,6.3154,252.92,252.77,23.776884]
[1737648574477,6.3154,252.92,252.81,312.0]
[1737648574798,6.3154,252.92,252.56,2.0]
[1737648574799,31.70321644,252.87,252.56,2.0]
[1737648574999,31.70321644,252.87,252.58,3.10484453]
[1737648575164,31.70321644,252.89,252.69,20.0]
[1737648575792,31.70321644,252.89,252.63,1.0]
[1737648575971,31.70321644,252.89,252.59,1.0]
[1737648576173,31.70321644,252.89,252.63,1.0]
[1737648576488,6.3154,252.92,252.71,20.0]
[1737648576670,6.3154,252.92,252.68,23.776884]
[1737648576671,33.22671644,252.95,252.79,20.0]
[1737648576874,1.5235,252.95,252.65,1.0]
[1737648577075,1.5235,252.95,252.54,13.2607]
[1737648577076,31.70321644,252.94,252.66,1.0]
[1737648577280,1.5235,252.95,252.68,20.0]
[1737648577610,1.5235,252.95,252.65,23.776884]
[1737648577898,1.5235,252.95,252.68,23.776884]
[1737648578092,1.5235,252.95,252.75,20.0]
[1737648578485,1.5235,252.95,252.65,1.0]
[1737648578805,31.70321644,252.94,252.64,20.0]
[1737648579006,5.4768,252.95,252.72,1.0]
[1737648579007,1.5235,252.95,252.72,1.0]
[1737648579372,1.5235,252.95,252.71,23.776884]
[1737648579901,1.5235,252.95,252.72,20.0]
[1737648580110,1.5235,252.95,252.8,20.0]
[1737648580283,31.70321644,252.94,252.65,1.0]
[1737648580800,31.70321644,252.92,252.65,1.60002077]
[1737648581004,31.70321644,252.94,252.73,312.0]
[1737648581175,1.0,252.93,252.73,312.0]
[1737648581376,31.70321644,252.9,252.62,0.063]
[1737648581708,3.9542,252.89,252.62,1.65927655]
[1737648582000,31.70321644,252.9,252.62,0.063]
[1737648582171,23.76,252.89,252.72,20.0]
[1737648582378,31.73321644,252.94,252.73,23.776884]
[1737648582591,0.03,252.94,252.77,23.776884]
[1737648582881,31.73321644,252.94,252.63,1.0]
[1737648583090,0.03,252.94,252.67,1.0]
[1737648583277,0.03,252.94,252.72,23.776884]
[1737648583604,0.03,252.94,252.76,23.776884]
[1737648583777,0.03,252.94,252.83,20.0]
[1737648584094,0.03,252.94,252.68,1.0]
[1737648584295,0.03,252.94,252.81,20.0]
[1737648584493,0.03,252.94,252.84,23.776884]
[1737648585000,0.03,252.94,252.82,23.776884]
[1737648585479,0.03,252.94,252.73,1.55153242]
[1737648585679,0.03,252.94,252.79,20.0]
[1737648585895,0.03,252.94,252.8,23.776884]
[1737648586087,0.03,252.94,252.84,23.776884]
[1737648587791,0.03,252.94,252.89,23.776884]
[1737648588403,0.03,252.94,252.93,23.776884]
[1737648588600,0.03,252.94,252.9,20.0]
[1737648589017,0.03,252.94,252.79,11.98451242]
[1737648589182,0.03,252.94,252.79,8.40447844]
[1737648589385,0.03,252.94,252.82,20.0]
[1737648589783,0.03,252.94,252.86,20.0]
[1737648590286,0.03,252.94,252.93,43.776884]
[1737648590595,1.5116,253.11,252.97,20.0]
[1737648591107,1.5116,253.11,252.98,23.776884]
[1737648591309,1.5116,253.11,253.02,23.776884]
[1737648591518,1.5116,253.11,253.01,312.0]
[1737648591802,1.5116,253.11,252.83,1.0]
[1737648591803,1.5116,253.11,252.85,1.0]
[1737648592003,5.4625,253.11,252.83,20.0]
[1737648592182,8.770003,253.3,252.96,1.0]
[1737648592382,6.4416,253.27,252.96,1.0]
[1737648592611,6.4416,253.27,252.97,20.0]
[1737648593310,6.4416,253.27,253.09,20.0]
[1737648593612,1.0,253.25,252.94,5.39070926]
[1737648593784,32.70321644,253.23,252.94,5.39070926]
[1737648593991,0.03,253.14,253.03,20.0]
[1737648594188,0.03,253.14,253.04,23.776884]
[1737648594394,1.5546,253.14,252.94,1.59400861]
[1737648594717,6.1523,253.13,252.95,312.0]
[1737648594888,6.1523,253.13,252.85,6.2536]
[1737648595288,6.1523,253.13,252.86,23.776884]
[1737648595523,41.80601644,253.13,252.85,6.2536]
[1737648596020,32.70321644,253.11,252.85,6.2536]
[1737648596326,31.70321644,253.11,252.85,6.2536]
[1737648596995,31.70321644,253.11,252.9,23.776884]
[1737648597389,31.70321644,253.11,252.86,23.776884]
[1737648597586,31.70321644,253.11,252.84,1.5753668]
[1737648597785,7.1523,253.13,252.84,20.0]
[1737648597786,37.85551644,253.13,252.84,20.0]
[1737648597987,6.1523,253.13,252.94,23.776884]
[1737648598292,6.1523,253.13,252.98,23.776884]
[1737648598493,37.85551644,253.13,252.97,20.0]
[1737648598685,31.70321644,253.11,252.81,12.1689739]
[1737648599103,35.65411644,253.11,252.81,12.1689739]
[1737648599417,31.70321644,253.09,252.85,20.0]
[1737648599996,31.70321644,253.07,252.81,5.3489739]
[1737648600194,31.70321644,252.96,252.68,7.2717]
[1737648600387,31.70321644,252.92,252.68,10.06840065]
[1737648600696,31.70321644,252.98,252.68,6.2717]
[1737648600990,7.9236,252.99,252.74,23.776884]
[1737648601205,7.9236,252.99,252.77,20.0]
[1737648601408,7.9236,252.99,252.88,312.0]
[1737648601712,31.70321644,252.96,252.68,6.2717]
[1737648602014,31.70321644,252.93,252.68,6.2717]
[1737648602519,31.70321644,252.93,252.69,23.776884]
[1737648602809,31.70321644,252.91,252.68,6.2717]
[1737648603000,31.70321644,252.89,252.62,42.743]
[1737648603197,31.70321644,252.89,252.62,0.063]
[1737648603385,31.70321644,252.95,252.65,43.776884]
[1737648603586,1.0,252.96,252.65,43.776884]
[1737648603801,31.70321644,252.95,252.65,20.0]
[1737648604004,31.70321644,252.93,252.65,20.0]
[1737648604204,31.70321644,252.95,252.65,20.0]
[1737648604410,31.70321644,252.95,252.7,20.0]
[1737648604607,31.70321644,252.93,252.79,312.0]
[1737648604790,31.70321644,252.89,252.79,312.0]
[1737648605007,31.70321644,252.89,252.6,1.0]
[1737648605205,3.9539,252.92,252.6,1.0]
[1737648605516,35.65691644,252.93,252.71,23.776884]
[1737648605719,35.65691644,252.93,252.74,20.0]
[1737648605902,31.70321644,252.89,252.62,9.83156379]
[1737648606120,31.70321644,252.79,252.62,0.063]
[1737648606314,31.70321644,252.75,252.62,0.063]
[1737648606519,31.70321644,252.79,252.62,0.063]
[1737648606693,31.70321644,252.85,252.62,0.063]
[1737648607219,7.8907,252.86,252.67,20.0]
[1737648607624,7.6235,252.96,252.72,43.776884]
[1737648607914,7.6235,252.96,252.85,312.0]
[1737648608421,31.70321644,252.95,252.71,20.0]
[1737648608606,31.70321644,252.95,252.72,23.776884]
[1737648608922,6.0588,253.04,252.77,1.0]
[1737648609121,1.5647,253.09,252.73,1.0]
[1737648609122,1.5647,253.09,252.81,7.2563]
[1737648609423,1.5647,253.09,252.89,20.0]
[1737648609629,1.5647,253.09,252.81,7.2563]
[1737648609846,0.03,253.14,252.9,23.776884]
[1737648610130,1.0,253.25,252.9,23.776884]
[1737648610131,3.9467,253.38,253.0,23.776884]
[1737648610421,3.971,253.39,253.0,23.776884]
[1737648610422,7.9175,253.39,253.01,3.8306451]
[1737648610720,31.70321644,253.34,253.06,23.776884]
[1737648610905,31.70321644,253.3,253.06,23.776884]
[1737648611117,31.70321644,253.32,253.03,20.0]
[1737648611414,31.70321644,253.3,253.11,312.0]
[1737648611617,31.70321644,253.24,253.11,312.0]
[1737648611798,31.70321644,253.26,253.11,312.0]
[1737648611994,33.25281644,253.3,253.11,312.0]
[1737648612195,1.5496,253.3,253.08,20.0]
[1737648612410,35.64981644,253.38,253.02,20.0]
[1737648612609,31.70321644,253.38,253.11,20.0]
[1737648612799,6.3047,253.41,253.15,20.0]
[1737648613001,1.6276,253.42,253.23,20.0]
[1737648613200,1.6276,253.42,253.1,1.0]
[1737648613201,1.6276,253.42,253.12,2.0]
[1737648613403,31.70321644,253.57,253.31,20.0]
[1737648613618,31.70321644,253.57,253.36,20.0]
[1737648613818,3.9432,253.6,253.4,20.0]
[1737648614201,12.6900685,253.62,253.4,20.0]
[1737648614423,8.7471685,253.62,253.4,20.0]
[1737648614723,3.9421,253.68,253.4,1.0]
[1737648615027,8.7471685,253.73,253.55,1.0]
[1737648615226,8.7471685,253.73,253.67,312.0]
[1737648615524,1.0,254.03,253.67,312.0]
[1737648615698,35.64031644,253.99,253.67,1.0]
[1737648615902,31.70321644,253.93,253.61,1.59770831]
[1737648616202,31.70321644,253.93,253.57,1.0]
[1737648616203,31.70321644,253.93,253.62,23.776884]
[1737648616526,1.0,253.9,253.66,23.776884]
[1737648616829,1.0,253.88,253.66,23.776884]
[1737648617034,1.0,253.86,253.58,1.0]
[1737648617322,13.9796,254.0,253.58,1.0]
[1737648617323,20.0,253.79,253.59,23.8483419]
[1737648617521,1.0,253.84,253.59,0.0714579]
[1737648617522,32.70321644,253.84,253.59,0.0714579]
[1737648617701,31.70321644,253.9,253.59,17.70281398]
[1737648617901,31.70321644,253.84,253.62,20.0]
[1737648618116,1.0,253.95,253.6,7.58692027]
[1737648618301,31.70321644,253.8,253.6,7.58692027]
[1737648618504,31.70321644,253.78,253.6,7.58692027]
[1737648618699,32.70321644,253.89,253.6,7.58692027]
[1737648618700,31.70321644,253.8,253.61,23.776884]
[1737648618925,31.70321644,253.84,253.6,7.58692027]
[1737648619124,1.0,253.91,253.82,5.73482516]
[1737648619327,30.0,253.92,253.82,5.73482516]
[1737648619328,1.0,253.88,253.82,5.73482516]
[1737648619535,31.70321644,253.98,253.84,20.0]
[1737648619822,3.9374,253.98,253.81,5.73482516]
[1737648620028,31.70321644,253.94,253.81,5.73482516]
[1737648620321,31.70321644,253.92,253.81,5.73482516]
[1737648620715,31.70321644,253.88,253.81,5.73482516]
[1737648620910,1.0,253.88,253.85,7.58692027]
[1737648621225,20.0,253.96,253.85,5.92032027]
[1737648621226,56.64231644,253.86,253.85,5.92032027]
[1737648621405,4.9391,253.86,253.85,2.58712027]
[1737648621608,1.0,253.8,253.75,22.13382684]
[1737648621824,63.40643288,253.76,253.75,22.13382684]
[1737648622021,64.40643288,253.76,253.75,13.10822714]
[1737648622224,23.776884,253.75,253.63,10.11589371]
[1737648622433,31.70321644,253.71,253.68,13.91200887]
[1737648622634,31.70321644,253.77,253.68,13.91200887]
[1737648622916,31.70321644,253.72,253.68,13.91200887]
[1737648623136,31.70321644,253.7,253.68,4.82200807]
[1737648623429,31.70321644,253.78,253.68,4.82200807]
[1737648623625,31.70321644,253.8,253.68,4.82200807]
[1737648623840,39.8459,253.92,253.68,4.82200807]
[1737648623841,31.70321644,253.84,253.69,23.776884]
[1737648624007,37.67522066,253.88,253.71,20.0]
[1737648624212,5.97200422,253.88,253.73,20.0]
[1737648624413,5.97200422,253.88,253.7,6.4663]
[1737648624620,5.97200422,253.88,253.73,20.0]
[1737648624822,5.97200422,253.88,253.74,23.776884]
[1737648625126,5.97200422,253.88,253.73,20.0]
[1737648625328,5.97200422,253.88,253.78,23.776884]
[1737648626414,51.70321644,253.93,253.7,6.4663]
[1737648626716,31.70321644,253.91,253.7,6.4663]
[1737648627204,1.0,253.88,253.58,6.2139]
[1737648627537,31.70321644,253.88,253.58,6.2139]
[1737648627712,3.9385,253.9,253.58,6.2139]
[1737648627713,20.0,253.87,253.58,6.2139]
[1737648627913,31.70321644,253.84,253.58,6.2139]
[1737648628443,31.70321644,253.78,253.58,6.2139]
[1737648629125,31.70321644,253.81,253.58,6.2139]
[1737648629433,4.02690705,253.86,253.62,23.776884]
[1737648629608,3.9688,253.88,253.7,23.776884]
[1737648629811,31.70321644,253.79,253.61,201.591]
[1737648630008,31.70321644,253.85,253.62,23.776884]
[1737648630206,31.70321644,253.85,253.65,20.0]
[1737648630507,0.03,253.88,253.66,23.776884]
[1737648630819,0.03,253.88,253.69,20.0]
[1737648631127,31.70321644,253.85,253.61,201.591]
[1737648631324,3.9392,253.86,253.62,23.776884]
[1737648631507,0.03,253.88,253.66,23.776884]
[1737648631706,0.03,253.88,253.73,20.0]
[1737648632015,0.03,253.88,253.77,23.776884]
[1737648632622,0.03,253.88,253.81,23.776884]
[1737648632822,0.03,253.88,253.61,202.591]
[1737648633048,0.03,253.88,253.73,1.0]
[1737648633208,0.2,254.0,253.83,26.1676]
[1737648633844,31.90321644,254.0,253.83,6.1676]
[1737648634132,31.70321644,253.98,253.7,6.0565]
[1737648634376,31.70321644,253.96,253.7,6.0565]
[1737648634715,0.2,254.0,253.73,20.0]
[1737648634916,0.2,254.0,253.81,20.0]
[1737648635348,0.2,254.0,253.86,23.776884]
[1737648635547,3.9371,253.99,253.85,20.0]
[1737648635709,31.90321644,254.0,253.71,1.0]
[1737648636041,0.2,254.0,253.77,23.776884]
[1737648636214,0.2,254.0,253.76,23.776884]
[1737648636624,0.2,254.0,253.79,23.776884]
[1737648636822,0.2,254.0,253.7,8.60095635]
[1737648637019,35.84021644,254.0,253.7,8.60095635]
[1737648637226,31.70321644,253.98,253.7,7.60095635]
[1737648637429,35.84021644,254.0,253.7,8.60095635]
[1737648637734,0.2,254.0,253.7,8.60095635]
[1737648638036,3.9371,253.99,253.73,20.0]
[1737648638243,0.2,254.0,253.73,20.0]
[1737648638611,0.2,254.0,253.7,7.60095635]
[1737648638919,0.2,254.0,253.82,23.776884]
[1737648639120,0.2,254.0,253.79,1.5808]
[1737648639912,0.2,254.0,253.81,23.776884]
[1737648640109,0.2,254.0,253.88,1.0]
[1737648640335,0.2,254.0,253.89,23.776884]
[1737648640512,0.2,254.0,253.83,1.0]
[1737648640720,0.2,254.0,253.86,1.0]
[1737648640936,0.2,254.0,253.88,23.776884]
[1737648641111,0.03,254.0,253.94,23.776884]
[1737648641416,31.70321644,254.23,253.97,20.0]
[1737648641816,31.70321644,254.23,253.93,20.0]
[1737648642020,31.70321644,254.21,253.93,20.0]
[1737648642315,45.46801644,254.27,253.95,1.0]
[1737648642524,31.70321644,254.25,253.95,21.0]
[1737648642932,31.70321644,254.2,253.95,20.0]
[1737648643113,31.70321644,254.2,254.03,20.0]
[1737648643312,3.9345,254.16,253.94,1.5912]
[1737648643623,31.70321644,254.28,253.94,1.5912]
[1737648643624,31.70321644,254.21,253.98,20.0]
[1737648643931,31.70321644,254.19,254.03,23.776884]
[1737648644120,31.70321644,254.13,253.94,1.5912]
[1737648644324,31.70321644,254.11,253.94,1.5912]
[1737648644572,31.70321644,254.07,253.94,1.5912]
[1737648644717,31.70321644,254.11,253.94,1.5912]
[1737648645438,44.7671,254.23,253.94,1.5912]
[1737648645439,31.70321644,254.05,253.94,1.5912]
[1737648645619,31.70321644,254.07,253.9,6.473]
[1737648645819,31.70321644,254.08,253.82,1.6502]
[1737648646043,31.70321644,254.08,253.83,20.0]
[1737648646246,31.70321644,254.14,253.93,20.0]
[1737648646738,31.70321644,254.08,253.82,1.6502]
[1737648646943,31.70321644,254.1,253.94,15.7493]
[1737648647236,31.70321644,254.1,253.82,1.6502]
[1737648647237,31.70321644,254.12,253.82,1.6502]
[1737648647430,31.70321644,254.14,253.9,20.0]
[1737648647639,31.70321644,254.1,253.94,20.0]
[1737648647936,31.70321644,254.14,253.83,15.7493]
[1737648648135,31.70321644,254.12,253.86,20.0]
[1737648649259,31.70321644,254.14,253.86,21.0]
[1737648649461,31.70321644,254.16,253.98,20.0]
[1737648649753,31.70321644,254.14,253.82,1.6502]
[1737648649964,31.70321644,254.1,253.82,1.6502]
[1737648650163,51.70321644,254.12,253.82,1.6502]
[1737648650457,31.70321644,254.08,253.82,1.6502]
[1737648650763,31.70321644,254.06,253.82,1.6502]
[1737648651059,31.70321644,254.08,253.86,312.0]
[1737648651259,31.70321644,254.03,253.86,312.0]
[1737648651431,31.70321644,253.98,253.82,1.6502]
[1737648651767,31.70321644,254.04,253.82,1.6502]
[1737648651938,6.0697,254.12,253.82,1.6502]
[1737648651939,31.70321644,254.06,253.83,39.526184]
[1737648652141,31.70321644,254.08,253.87,23.776884]
[1737648652332,31.70321644,254.12,253.91,23.776884]
[1737648652733,31.70321644,254.08,253.91,23.776884]
[1737648652934,31.70321644,254.12,253.91,23.776884]
[1737648653130,31.70321644,254.14,253.94,20.0]
[1737648653340,31.70321644,254.14,253.86,20.0]
[1737648653542,31.70321644,254.08,253.86,20.0]
[1737648653831,31.70321644,254.08,253.83,17.30827896]
[1737648654032,31.70321644,254.08,253.86,20.0]
[1737648654336,31.70321644,254.08,253.88,312.0]
[1737648654535,31.70321644,254.1,253.91,20.0]
[1737648655052,1.0,254.15,253.83,17.30827896]
[1737648655053,31.70321644,254.04,253.92,23.776884]
[1737648655366,31.70321644,254.06,253.83,15.7493]
[1737648655544,31.70321644,254.0,253.83,15.7493]
[1737648655856,31.70321644,254.0,253.82,1.6502]
[1737648656055,31.70321644,253.96,253.82,17.3995]
[1737648656260,31.70321644,253.94,253.7,1.5389]
[1737648656560,31.70321644,253.92,253.77,15.76163]
[1737648656738,32.70321644,254.02,253.72,0.063]
[1737648656739,31.70321644,253.94,253.72,0.063]
[1737648656938,31.70321644,253.96,253.72,20.063]
[1737648657273,31.70321644,253.94,253.73,6.2749]
[1737648657442,31.70321644,253.81,253.72,0.063]
[1737648657764,1.0,253.85,253.59,1.6409]
[1737648657765,31.70321644,253.76,253.59,1.6409]
[1737648658061,31.70321644,253.76,253.58,6.3882]
[1737648658062,20.0,253.65,253.61,166.65167229]
[1737648658362,31.70321644,253.62,253.61,16.14105775]
[1737648658554,1.0,253.61,253.39,1.6409]
[1737648658737,31.70321644,253.41,253.26,3.9485]
[1737648659135,31.70321644,253.44,253.25,1.6409]
[1737648659338,31.70321644,253.35,253.25,1.6409]
[1737648659539,31.70321644,253.38,253.25,1.6409]
[1737648659745,31.70321644,253.32,253.13,3.9505]
[1737648660065,31.70321644,253.25,253.13,3.9505]
[1737648660270,31.70321644,253.17,252.97,3.953]
[1737648660477,31.70321644,253.24,252.97,3.953]
[1737648660478,31.70321644,253.12,252.97,3.953]
[1737648660654,31.70321644,253.06,252.97,3.953]
[1737648660977,31.70321644,253.03,252.89,3.9542]
[1737648661348,31.70321644,253.15,252.9,1.0]
[1737648661552,31.70321644,253.19,252.89,3.9542]
[1737648661758,31.70321644,253.19,252.89,5.5403507]
[1737648662039,1.0,253.36,252.98,1.0]
[1737648662040,31.70321644,253.27,252.98,1.0]
[1737648662353,31.70321644,253.29,252.98,1.0]
[1737648662546,31.70321644,253.43,253.11,6.2492]
[1737648662872,31.70321644,253.35,253.12,23.776884]
[1737648663088,31.70321644,253.25,252.99,1.5062]
[1737648663452,31.70321644,253.19,253.0,3.9525]
[1737648663653,31.70321644,253.25,253.0,3.9525]
[1737648663962,31.70321644,253.16,253.0,3.9525]
[1737648664140,31.70321644,253.14,252.99,5.4588]
[1737648664342,31.70321644,253.2,252.99,5.4588]
[1737648664766,31.70321644,253.24,253.02,20.0]
[1737648664964,31.70321644,253.24,252.99,15.3406]
[1737648665179,31.70321644,253.3,252.99,15.3406]
[1737648665354,31.70321644,253.34,253.11,20.0]
[1737648665548,31.70321644,253.28,253.05,23.776884]
[1737648665743,0.03,253.36,253.07,21.0]
[1737648665948,31.70321644,253.33,253.08,23.776884]
[1737648666170,0.03,253.36,253.08,23.776884]
[1737648666375,0.03,253.36,253.07,21.0]
[1737648666545,0.03,253.36,253.14,1.0]
[1737648666753,0.03,253.36,253.16,1.0]
[1737648666958,0.03,253.36,253.08,1.0]
[1737648667163,0.03,253.36,253.2,312.0]
[1737648667351,0.03,253.36,253.23,20.0]
[1737648667869,0.03,253.36,253.25,23.776884]
[1737648668373,0.03,253.36,253.21,3.9492]
[1737648669177,20.0,253.19,253.01,3.9524]
[1737648669387,6.1097,253.36,253.0,4.0154]
[1737648669388,31.70321644,253.18,253.0,4.0154]
[1737648669672,1.0,253.34,253.0,4.0154]
[1737648669845,31.70321644,253.3,253.01,20.0]
[1737648670046,23.76,253.28,253.0,13.8968]
[1737648670247,31.70321644,253.29,253.03,20.0]
[1737648670467,32.70321644,253.22,253.0,0.063]
[1737648670647,31.70321644,253.16,253.0,0.063]
[1737648670844,31.70321644,253.18,253.0,4.0154]
[1737648671043,31.70321644,253.22,253.0,4.0154]
[1737648671249,31.70321644,253.2,253.0,4.0154]
[1737648671645,31.70321644,253.26,253.0,13.8968]
[1737648671850,0.72607017,253.28,253.03,20.0]
[1737648672050,31.70321644,253.23,253.03,20.0]
[1737648672757,31.70321644,253.21,253.03,20.0]
[1737648672961,31.70321644,253.23,253.01,23.776884]
[1737648673154,31.70321644,253.31,253.07,20.0]
[1737648673353,31.70321644,253.33,253.13,3.9505]
[1737648673556,31.70321644,253.33,253.14,23.776884]
[1737648673760,31.70321644,253.31,253.13,3.9505]
[1737648673979,31.70321644,253.28,253.13,3.9505]
[1737648674186,31.70321644,253.24,253.08,3.9513]
[1737648674348,31.70321644,253.22,253.01,9.8807]
[1737648674555,31.70321644,253.23,253.02,13.8328]
[1737648674868,31.70321644,253.23,253.03,23.776884]
[1737648675082,31.70321644,253.25,253.03,23.776884]
[1737648675381,31.70321644,253.32,253.08,20.0]
[1737648675559,31.70321644,253.34,253.17,20.0]